bitfinex/quotes_SOLUSD_20250212
["timestamp","ask_amount","ask_price","bid_price","bid_amount"]
[1739331846801,4.092,195.5,195.45,18.40884036]
[1739331846998,4.092,195.5,195.46,13.78831853]
[1739331847883,4.092,195.5,195.46,23.85546889]
[1739331849902,4.092,195.5,195.48,0.12549]
[1739331850604,4.155,195.5,195.48,13.78831853]
[1739331850804,4.155,195.5,195.48,23.85546889]
[1739331851005,4.155,195.5,195.48,13.78831853]
[1739331852803,0.063,195.5,195.48,13.78831853]
[1739331853188,0.063,195.5,195.48,0.12549]
[1739331853389,0.063,195.5,195.45,8.34169]
[1739331853390,10.13015036,195.5,195.45,8.34169]
[1739331853697,10.06715036,195.49,195.46,13.78831853]
[1739331854204,10.06715036,195.48,195.45,1.5534]
[1739331854386,10.06715036,195.46,195.43,0.0001]
[1739331854586,10.06715036,195.44,195.43,0.0001]
[1739331855395,4.0933,195.44,195.43,0.0001]
[1739331857096,14.16045036,195.44,195.43,0.0001]
[1739331860009,4.0933,195.44,195.43,0.0001]
[1739331861504,10.06715036,195.44,195.43,0.0001]
[1739331861998,14.16025036,195.45,195.43,0.0001]
[1739331862199,10.06715036,195.44,195.43,0.0001]
[1739331862511,10.13015036,195.44,195.43,0.0001]
[1739331863507,14.22345036,195.44,195.43,0.0001]
[1739331864214,4.1563,195.44,195.43,0.0001]
[1739331865916,14.22345036,195.44,195.43,0.0001]
[1739331867913,4.1563,195.44,195.43,0.0001]
[1739331868299,4.1563,195.44,195.43,10.44372036]
[1739331868609,4.1563,195.44,195.43,25.49576889]
[1739331868816,4.1563,195.44,195.43,25.62125889]
[1739331869999,0.063,195.44,195.43,1.76579]
[1739331870314,0.063,195.44,195.43,0.0001]
[1739331872396,0.063,195.44,195.43,0.12559]
[1739331872604,0.063,195.44,195.43,13.78841853]
[1739331873995,0.063,195.44,195.43,0.12559]
[1739331874295,0.063,195.44,195.43,0.0001]
[1739331878327,82.563,195.44,195.43,0.0001]
[1739331878713,86.6563,195.44,195.43,0.0001]
[1739331882132,96.72345036,195.44,195.43,0.0001]
[1739331882634,86.6563,195.44,195.43,0.0001]
[1739331884340,4.1563,195.44,195.43,0.0001]
[1739331886539,0.063,195.44,195.43,0.0001]
[1739331888014,0.063,195.44,195.43,13.66292853]
[1739331888219,0.063,195.44,195.43,23.98105889]
[1739331888831,0.063,195.44,195.43,13.78841853]
[1739331890037,0.063,195.44,195.43,0.0001]
[1739331892647,0.063,195.44,195.43,0.12559]
[1739331892824,0.063,195.44,195.43,23.73007889]
[1739331893636,0.063,195.44,195.43,0.12559]
[1739331893834,0.063,195.44,195.43,0.0001]
[1739331900655,0.063,195.44,195.43,0.12559]
[1739331900858,0.063,195.44,195.43,23.98105889]
[1739331901748,0.063,195.44,195.43,13.91390853]
[1739331903454,0.063,195.44,195.43,0.0001]
[1739331904435,0.063,195.44,195.43,0.12559]
[1739331906034,0.063,195.44,195.43,23.98105889]
[1739331906653,0.063,195.44,195.43,31.99285889]
[1739331908146,0.063,195.44,195.43,21.92570853]
[1739331908359,0.063,195.44,195.43,13.78841853]
[1739331909550,0.063,195.44,195.43,13.91390853]
[1739331909750,0.063,195.44,195.43,23.98105889]
[1739331910662,0.063,195.44,195.43,31.99285889]
[1739331911658,0.063,195.44,195.43,21.92570853]
[1739331912156,0.063,195.44,195.43,31.99285889]
[1739331915172,0.063,195.44,195.43,21.92570853]
[1739331915360,0.063,195.44,195.43,13.78841853]
[1739331915567,0.063,195.44,195.43,0.0001]
[1739331915746,30.13015036,195.44,195.43,0.0001]
[1739331917043,30.13015036,195.44,195.4,0.0001]
[1739331917249,10.06715036,195.41,195.39,0.0001]
[1739331917457,148.16715036,195.4,195.34,13.78831853]
[1739331917661,4.0947,195.37,195.34,13.66282853]
[1739331919851,15.75030087,195.36,195.33,8.14419343]
[1739331920371,15.75030087,195.36,195.33,0.03]
[1739331920684,15.75030087,195.34,195.32,0.0001]
[1739331920884,35.75030087,195.33,195.31,0.0001]
[1739331921177,35.75030087,195.32,195.31,0.0001]
[1739331921764,39.84610087,195.32,195.31,0.0001]
[1739331924984,51.08570087,195.32,195.28,0.0001]
[1739331925279,15.75030087,195.29,195.27,0.0001]
[1739331925577,35.75030087,195.28,195.27,0.0001]
[1739331925960,39.84690087,195.28,195.27,0.0001]
[1739331926165,52.08860087,195.28,195.23,0.03]
[1739331926477,17.28230087,195.24,195.23,0.0001]
[1739331928083,21.37980087,195.24,195.23,0.0001]
[1739331930269,23.37980087,195.24,195.23,0.0001]
[1739331930455,1.0,195.2,195.13,0.03]
[1739331930659,15.75030087,195.14,195.13,0.03]
[1739331931692,15.75030087,195.15,195.13,0.03]
[1739331931975,15.75030087,195.17,195.13,0.03]
[1739331932151,20.0,195.15,195.13,0.15549]
[1739331932353,20.0,195.16,195.13,13.56733853]
[1739331932573,20.0,195.16,195.13,0.15549]
[1739331933985,4.0994,195.15,195.13,0.03]
[1739331934280,153.85030087,195.14,195.05,15.75030087]
[1739331934476,15.75030087,195.12,195.06,13.53733853]
[1739331935085,138.1,195.13,195.1,0.12549]
[1739331935282,15.75030087,195.14,195.1,0.12549]
[1739331935785,224.6994,195.15,195.1,13.53733853]
[1739331935786,240.44970087,195.15,195.1,13.53733853]
[1739331936086,224.6994,195.15,195.1,29.2876394]
[1739331936382,15.75030087,195.14,195.08,15.75030087]
[1739331936580,15.75030087,195.13,195.08,13.78831853]
[1739331936769,15.75030087,195.14,195.08,13.78831853]
[1739331937263,15.75030087,195.14,195.08,29.5386194]
[1739331937687,15.75030087,195.13,195.08,13.78831853]
[1739331937890,4.1,195.12,195.08,0.12549]
[1739331938191,15.75030087,195.09,195.03,0.03]
[1739331938371,15.75030087,195.07,195.04,1.5637]
[1739331938564,138.1,195.11,195.03,0.03]
[1739331938565,15.75030087,195.06,195.03,0.03]
[1739331939089,35.75030087,195.07,195.03,0.03]
[1739331939275,15.75030087,195.05,195.03,0.03]
[1739331939872,15.75030087,195.06,195.03,0.03]
[1739331940075,19.85160087,195.06,195.03,0.03]
[1739331940268,15.75030087,195.05,195.03,0.03]
[1739331940569,19.85160087,195.06,195.03,0.03]
[1739331941778,4.1013,195.06,195.03,0.03]
[1739331942095,19.85160087,195.06,195.03,0.03]
[1739331942773,15.75030087,195.04,195.03,0.03]
[1739331944069,19.85200087,195.04,195.03,0.03]
[1739331944268,20.0,195.01,194.92,15.75030087]
[1739331944495,15.75030087,195.0,194.95,13.66282853]
[1739331944700,35.75030087,195.01,194.95,13.66282853]
[1739331945080,35.75030087,195.01,194.96,0.12549]
[1739331945997,20.0,195.01,194.96,0.25098]
[1739331946177,157.95230087,195.03,194.98,0.12549]
[1739331946368,138.1,195.03,194.99,0.12549]
[1739331946569,138.1,195.03,195.0,0.12549]
[1739331946875,19.85150087,195.07,195.02,0.12549]
[1739331947194,157.95150087,195.07,195.02,13.66282853]
[1739331947432,15.75030087,195.06,195.02,13.66282853]
[1739331947700,15.75030087,195.06,195.02,0.12549]
[1739331947994,15.75030087,195.03,194.96,6.5358]
[1739331948194,15.75030087,195.02,194.97,13.91380853]
[1739331948997,15.75030087,195.03,194.97,29.6641094]
[1739331949293,15.75030087,195.04,194.99,0.12549]
[1739331949501,15.75030087,195.03,194.99,0.12549]
[1739331949795,19.85180087,195.05,195.0,0.37647]
[1739331950096,4.1015,195.05,195.02,0.12549]
[1739331950899,19.85110087,195.08,195.04,0.12549]
[1739331951215,20.0,195.06,195.04,0.12549]
[1739331951712,4.1008,195.08,195.04,0.37647]
[1739331952306,4.1008,195.08,195.06,0.12549]
[1739331952609,4.1002,195.11,195.07,0.12549]
[1739331954112,4.1002,195.11,195.09,0.12549]
[1739331954313,4.0998,195.13,195.09,0.12549]
[1739331954488,4.0998,195.13,195.09,16.12677087]
[1739331954687,4.0998,195.13,195.11,0.12549]
[1739331954928,138.1,195.17,195.11,16.12677087]
[1739331955099,4.0992,195.16,195.11,16.12677087]
[1739331955616,4.0992,195.16,195.11,0.37647]
[1739331956800,15.75030087,195.14,195.09,0.12549]
[1739331957112,15.75030087,195.15,195.11,0.12549]
[1739331957902,15.75030087,195.13,195.07,15.75030087]
[1739331958115,15.75030087,195.12,195.05,22.28610087]
[1739331958310,15.75030087,195.11,195.05,22.28610087]
[1739331958614,4.1004,195.1,195.06,13.78831853]
[1739331958915,15.75030087,195.09,195.05,6.5358]
[1739331959116,15.75030087,195.08,195.05,6.5358]
[1739331959300,153.85030087,195.09,195.05,6.5358]
[1739331959504,138.1,195.09,195.06,0.12549]
[1739331960607,163.37298583,195.09,195.03,1.5494]
[1739331960816,39.62598583,195.08,195.04,0.12549]
[1739331961897,39.62598583,195.08,195.03,1.5494]
[1739331962099,14.353,195.08,195.03,1.5494]
[1739331962394,4.1008,195.08,195.04,13.91380853]
[1739331962624,39.62598583,195.08,195.04,0.12549]
[1739331962919,25.27298583,195.07,195.03,1.5494]
[1739331963123,39.62598583,195.08,195.03,1.5494]
[1739331963697,25.27298583,195.05,195.02,0.03]
[1739331964198,142.2017,195.04,195.02,0.03]
[1739331964603,25.27298583,195.03,195.02,0.03]
[1739331964816,163.37298583,195.03,195.02,0.03]
[1739331965331,163.37298583,195.03,195.02,0.0001]
[1739331966023,167.47488583,195.03,195.02,0.0001]
[1739331966325,29.37488583,195.03,195.02,0.0001]
[1739331967600,4.1019,195.03,195.02,0.0001]
[1739331968001,4.1015,195.05,195.02,0.0001]
[1739331968725,20.0,195.04,195.02,0.0001]
[1739331969021,4.1015,195.05,195.03,0.37647]
[1739331969325,25.27298583,195.1,195.04,13.41184853]
[1739331969521,4.1006,195.09,195.04,38.68483436]
[1739331970005,4.1006,195.09,195.04,45.23913436]
[1739331970516,4.1004,195.1,195.04,45.23913436]
[1739331970728,4.1004,195.1,195.05,25.64945583]
[1739331970909,0.063,195.08,195.05,25.64945583]
[1739331971221,0.063,195.08,195.05,0.37647]
[1739331971426,0.063,195.08,195.04,19.96614853]
[1739331972719,0.063,195.08,195.04,6.5543]
[1739331973018,25.33598583,195.08,195.04,6.5543]
[1739331973329,25.27298583,195.05,195.02,0.0001]
[1739331973535,25.27298583,195.03,195.02,0.0001]
[1739331974704,112.87488583,195.03,195.02,0.0001]
[1739331975203,113.87488583,195.03,195.02,0.0001]
[1739331975409,112.87488583,195.03,195.02,0.0001]
[1739331975925,111.87488583,195.03,195.02,0.0001]
[1739331977801,30.37488583,195.03,195.02,0.0001]
[1739331978001,31.37488583,195.03,195.02,0.0001]
[1739331978214,21.0,195.0,194.9,6.1469]
[1739331978435,25.27298583,194.94,194.9,6.1469]
[1739331978610,46.27298583,195.0,194.9,6.1469]
[1739331978611,25.27298583,194.95,194.9,6.1469]
[1739331978935,4.1038,194.94,194.9,6.1469]
[1739331979119,4.1038,194.94,194.9,31.41988583]
[1739331979317,4.1038,194.94,194.91,13.78831853]
[1739331979733,4.1038,194.94,194.93,25.27298583]
[1739331980037,4.1027,194.99,194.93,25.27298583]
[1739331980333,20.0,194.98,194.94,25.27298583]
[1739331980536,142.2027,194.99,194.94,25.27298583]
[1739331980710,142.2027,194.99,194.95,39.06130436]
[1739331981325,4.1027,194.99,194.95,39.06130436]
[1739331981520,4.1027,194.99,194.96,25.27298583]
[1739331981735,4.1027,194.99,194.97,25.27298583]
[1739331982032,4.1024,195.01,194.97,25.27298583]
[1739331983125,4.1024,195.01,194.99,25.27298583]
[1739331983325,0.063,195.03,195.01,13.78831853]
[1739331983636,0.063,195.03,195.02,39.06130436]
[1739331984113,1.0,195.15,195.02,39.06130436]
[1739331984114,4.1,195.12,195.05,20.0]
[1739331984312,25.33598583,195.16,195.07,25.27298583]
[1739331984524,0.063,195.16,195.07,39.18679436]
[1739331984731,45.27298583,195.13,195.07,45.20820436]
[1739331985027,4.0999,195.13,195.07,45.20820436]
[1739331985737,4.0999,195.13,195.07,45.33369436]
[1739331989858,14.3488,195.14,195.07,45.33369436]
[1739331990062,39.62178583,195.14,195.07,45.33369436]
[1739331990355,25.27298583,195.11,195.05,25.27298583]
[1739331990765,163.37298583,195.12,195.05,25.27298583]
[1739331990967,138.1,195.12,195.07,25.64945583]
[1739331991264,138.1,195.12,195.07,39.18679436]
[1739331991653,4.1002,195.11,195.07,39.18679436]
[1739331993267,14.3508,195.11,195.07,13.78831853]
[1739331995157,10.2506,195.11,195.07,13.78831853]
[1739331995744,4.1,195.12,195.07,39.18679436]
[1739331997357,0.063,195.16,195.07,39.18679436]
[1739331998156,0.063,195.16,195.07,44.31309436]
[1739331998952,0.063,195.16,195.07,39.18679436]
[1739332000241,0.063,195.16,195.08,14.91380853]
[1739332000442,0.063,195.16,195.15,13.78831853]
[1739332001671,0.063,195.16,195.13,0.12549]
[1739332001863,0.063,195.16,195.14,13.78831853]
[1739332004068,0.063,195.16,195.14,39.06130436]
[1739332004367,0.063,195.16,195.15,39.06130436]
[1739332004574,0.063,195.16,195.15,39.18679436]
[1739332011787,0.063,195.16,195.15,29.68661934]
[1739332014178,0.063,195.16,195.15,13.78831853]
[1739332015183,0.063,195.16,195.13,0.12549]
[1739332015397,0.063,195.16,195.09,15.77281081]
[1739332015561,15.77281081,195.13,195.07,23.65671081]
[1739332015880,15.77281081,195.13,195.08,13.91380853]
[1739332016062,26.02181081,195.14,195.08,0.37647]
[1739332016464,10.249,195.14,195.09,13.41184853]
[1739332016987,10.249,195.14,195.11,13.41184853]
[1739332017372,4.0994,195.15,195.12,0.37647]
[1739332018186,25.25844197,195.14,195.08,25.28844197]
[1739332018391,25.25844197,195.14,195.09,13.91380853]
[1739332019085,25.25844197,195.14,195.08,0.03]
[1739332019479,25.25844197,195.14,195.1,13.78831853]
[1739332019480,4.0996,195.14,195.1,13.78831853]
[1739332019683,4.0996,195.14,195.12,13.78831853]
[1739332020280,4.0996,195.14,195.11,25.25844197]
[1739332020479,4.0996,195.14,195.1,25.25844197]
[1739332020687,4.0996,195.14,195.12,0.12549]
[1739332021062,4.0996,195.14,195.13,13.78831853]
[1739332021267,0.063,195.16,195.13,13.78831853]
[1739332021268,0.063,195.16,195.15,13.91380853]
[1739332021491,0.063,195.16,195.15,39.1722505]
[1739332022577,0.063,195.16,195.15,46.8777505]
[1739332023183,0.063,195.16,195.15,47.8777505]
[1739332023689,0.063,195.16,195.15,42.7535505]
[1739332023994,0.063,195.16,195.15,40.7535505]
[1739332025691,0.063,195.16,195.15,41.7535505]
[1739332026401,0.063,195.16,195.15,40.7535505]
[1739332026695,0.063,195.16,195.15,41.7535505]
[1739332027001,0.063,195.16,195.15,40.7535505]
[1739332028391,0.063,195.16,195.15,39.1722505]
[1739332032005,0.063,195.23,195.21,0.25098]
[1739332032200,0.063,195.23,195.22,39.0467605]
[1739332034116,0.063,195.23,195.19,25.25844197]
[1739332034293,0.063,195.23,195.18,25.25844197]
[1739332034495,0.063,195.23,195.19,13.91380853]
[1739332035599,0.063,195.23,195.19,39.1722505]
[1739332035898,0.063,195.23,195.21,13.78831853]
[1739332037000,0.063,195.23,195.21,39.0467605]
[1739332037711,0.063,195.23,195.21,29.55536412]
[1739332038001,0.063,195.23,195.21,13.78831853]
[1739332039198,0.063,195.23,195.19,15.76704559]
[1739332039504,15.83004559,195.23,195.16,15.76704559]
[1739332039675,15.83004559,195.23,195.17,13.91380853]
[1739332040010,0.063,195.23,195.17,29.68085412]
[1739332040479,0.063,195.23,195.19,13.78831853]
[1739332041093,17.40374559,195.23,195.19,13.78831853]
[1739332041299,1.6367,195.23,195.16,0.03]
[1739332041507,15.76704559,195.2,195.16,0.03]
[1739332041893,15.76704559,195.21,195.16,0.03]
[1739332042094,138.1,195.22,195.18,13.41184853]
[1739332042297,0.063,195.23,195.19,16.14351559]
[1739332042531,0.063,195.23,195.22,29.55536412]
[1739332044007,0.063,195.23,195.22,29.68085412]
[1739332050306,0.063,195.23,195.22,13.91380853]
[1739332050699,0.063,195.23,195.22,29.68085412]
[1739332053109,0.063,195.23,195.22,13.78831853]
[1739332053413,0.063,195.23,195.19,15.76704559]
[1739332053615,0.063,195.23,195.17,15.76704559]
[1739332053820,0.063,195.23,195.18,13.91380853]
[1739332054331,0.063,195.23,195.2,0.12549]
[1739332054522,0.063,195.23,195.21,13.78831853]
[1739332054705,0.063,195.23,195.22,15.89253559]
[1739332054905,0.063,195.23,195.22,29.68085412]
[1739332055712,0.063,195.23,195.22,13.78831853]
[1739332055920,0.063,195.23,195.19,15.76704559]
[1739332056230,0.063,195.23,195.19,13.91380853]
[1739332057441,0.063,195.23,195.19,13.78831853]
[1739332058128,15.76704559,195.22,195.17,0.12549]
[1739332058629,15.76704559,195.22,195.18,13.78831853]
[1739332059127,15.76704559,195.22,195.16,0.03]
[1739332059317,15.76704559,195.21,195.16,0.03]
[1739332060222,4.0983,195.2,195.16,0.03]
[1739332062319,14.3442,195.2,195.16,0.03]
[1739332063027,15.76704559,195.19,195.16,0.03]
[1739332063231,15.76704559,195.17,195.16,0.03]
[1739332063612,15.76704559,195.18,195.16,0.03]
[1739332064018,35.76704559,195.17,195.16,0.03]
[1739332064238,35.76704559,195.17,195.16,0.0001]
[1739332065129,39.86594559,195.17,195.16,0.0001]
[1739332066038,24.0989,195.17,195.16,0.0001]
[1739332066336,4.0989,195.17,195.16,0.0001]
[1739332067420,39.86594559,195.17,195.16,0.0001]
[1739332067816,4.0989,195.17,195.16,0.0001]
[1739332068343,138.1,195.19,195.17,13.78831853]
[1739332068344,4.0988,195.18,195.17,13.78831853]
[1739332068541,4.0988,195.18,195.16,0.0001]
[1739332069043,4.0985,195.19,195.16,0.0001]
[1739332069942,15.76704559,195.18,195.16,0.0001]
[1739332070523,4.0985,195.19,195.16,0.0001]
[1739332070920,4.0985,195.19,195.18,29.55536412]
[1739332071123,0.063,195.23,195.19,0.37647]
[1739332071318,0.063,195.23,195.19,16.14351559]
[1739332072843,0.063,195.23,195.19,0.37647]
[1739332073346,0.063,195.23,195.19,16.14351559]
[1739332074041,0.063,195.23,195.19,0.37647]
[1739332079326,15.76704559,195.21,195.16,0.0001]
[1739332079532,15.76704559,195.2,195.16,0.0001]
[1739332079743,15.76704559,195.21,195.16,13.66292853]
[1739332079946,15.76704559,195.22,195.17,0.37647]
[1739332080941,15.83004559,195.23,195.18,13.41184853]
[1739332081132,0.063,195.23,195.19,16.14351559]
[1739332081560,0.063,195.23,195.2,13.41184853]
[1739332082359,0.063,195.23,195.21,0.37647]
[1739332082650,0.063,195.23,195.22,13.78831853]
[1739332084651,0.063,195.23,195.22,29.68085412]
[1739332085562,0.063,195.23,195.22,13.91380853]
[1739332085764,0.063,195.23,195.22,13.78831853]
[1739332085929,15.83004559,195.23,195.16,15.76714559]
[1739332086129,15.76704559,195.22,195.16,0.0001]
[1739332086331,15.76704559,195.22,195.17,13.91380853]
[1739332086553,0.063,195.23,195.17,13.78831853]
[1739332086554,15.76704559,195.21,195.17,13.78831853]
[1739332086849,15.76704559,195.2,195.16,0.0001]
[1739332087150,15.76704559,195.18,195.16,0.0001]
[1739332087353,15.76704559,195.17,195.16,0.0001]
[1739332087858,19.86594559,195.17,195.16,0.0001]
[1739332092751,157.96594559,195.17,195.16,0.0001]
[1739332093538,19.86594559,195.17,195.16,0.0001]
[1739332098160,20.0,195.14,195.08,0.03]
[1739332098340,15.76704559,195.1,195.08,0.03]
[1739332098946,15.76704559,195.09,195.03,0.03]
[1739332099151,15.76704559,195.07,195.03,0.03]
[1739332099764,4.1013,195.06,195.03,0.03]
[1739332099935,19.86834559,195.06,195.03,0.03]
[1739332100136,15.76704559,195.04,195.03,0.03]
[1739332100940,15.76704559,195.05,195.03,0.03]
[1739332101573,19.86834559,195.06,195.03,0.03]
[1739332102758,15.76704559,195.04,195.03,0.0001]
[1739332102973,15.76704559,195.05,195.03,0.0001]
[1739332103394,15.73169553,195.05,195.03,0.0001]
[1739332103785,4.1017,195.04,195.03,0.0001]
[1739332105767,4.1015,195.05,195.03,0.0001]
[1739332105962,15.76704559,195.04,195.03,0.0001]
[1739332107285,19.86874559,195.04,195.03,0.0001]
[1739332107500,4.1017,195.04,195.03,0.0001]
[1739332108083,4.07237949,195.04,195.03,0.0001]
[1739332108262,19.83942508,195.04,194.94,15.76704559]
[1739332108466,15.76704559,195.01,194.94,15.76704559]
[1739332108774,15.76704559,195.0,194.98,7.7885]
[1739332108967,15.76704559,195.0,194.95,13.78831853]
[1739332109163,4.1027,194.99,194.95,13.78831853]
[1739332110283,10.2566,195.0,194.95,13.78831853]
[1739332110468,15.76704559,195.01,194.95,29.55536412]
[1739332110469,4.1023,195.01,194.95,29.55536412]
[1739332110903,4.1023,195.01,194.97,29.55536412]
[1739332111993,4.07413013,195.01,194.97,29.55536412]
[1739332112302,4.07413013,195.01,194.99,13.78831853]
[1739332113403,4.04278377,195.01,194.99,13.78831853]
[1739332114200,4.01058982,195.01,194.99,13.78831853]
[1739332114503,10.2549,195.03,194.99,13.81831853]
[1739332114704,14.3568,195.03,194.99,13.81831853]
[1739332114876,0.063,195.01,194.99,13.81831853]
[1739332115368,0.03520463,195.01,194.99,13.81831853]
[1739332115702,0.03520463,195.01,195.0,29.68085412]
[1739332116164,0.03520463,195.01,195.0,53.41189971]
[1739332116579,4.1002,195.11,195.04,20.50196]
[1739332116782,4.1002,195.11,195.01,14.41184853]
[1739332116783,4.1002,195.11,195.09,0.37647]
[1739332117072,4.1002,195.11,195.1,29.55536412]
[1739332117278,4.1002,195.11,195.1,13.78831853]
[1739332118303,4.0996,195.14,195.1,13.78831853]
[1739332118686,4.0996,195.14,195.1,29.55536412]
[1739332119409,4.06563876,195.14,195.1,29.55536412]
[1739332120091,30.08168435,195.14,195.07,15.76704559]
[1739332120293,14.3501,195.12,195.06,15.76704559]
[1739332120608,15.76704559,195.1,195.03,15.76704559]
[1739332120774,15.76704559,195.08,195.02,15.76704559]
[1739332120968,15.76704559,195.08,195.03,13.91380853]
[1739332122107,15.73527891,195.09,195.03,13.91380853]
[1739332122616,4.1008,195.08,195.03,29.68085412]
[1739332123998,4.1006,195.09,195.03,29.68085412]
[1739332124199,4.1006,195.09,195.06,15.76704559]
[1739332124385,138.1,195.1,195.0,23.73104559]
[1739332124386,4.1,195.12,195.09,13.41184853]
[1739332124585,4.1,195.12,195.1,0.37647]
[1739332124900,19.86704559,195.12,195.05,15.76704559]
[1739332125080,14.3501,195.12,195.06,29.68085412]
[1739332125598,14.32267364,195.12,195.06,29.68085412]
[1739332125979,30.08971923,195.12,195.06,29.68085412]
[1739332126398,15.76704559,195.11,195.04,15.76704559]
[1739332126692,0.063,195.08,195.05,13.78831853]
[1739332127580,4.1638,195.08,195.05,13.78831853]
[1739332128492,4.1638,195.08,195.03,0.12549]
[1739332128671,4.1638,195.08,195.04,13.78831853]
[1739332129501,4.13486811,195.08,195.04,13.78831853]
[1739332129676,4.13486811,195.08,195.06,13.78831853]
[1739332130614,0.03406811,195.08,195.06,13.78831853]
[1739332130781,0.03406811,195.08,195.07,0.12549]
[1739332131110,0.00435348,195.08,195.07,0.12549]
[1739332131700,0.00435348,195.08,195.07,15.89253559]
[1739332132386,0.00435348,195.08,195.07,0.12549]
[1739332133302,14.3501,195.12,195.07,0.12549]
[1739332134177,14.31958058,195.12,195.07,0.12549]
[1739332134795,14.31958058,195.12,195.08,13.78831853]
[1739332136906,14.285163,195.12,195.08,13.78831853]
[1739332137208,30.05220859,195.12,195.08,13.78831853]
[1739332137595,15.76704559,195.1,195.03,15.76704559]
[1739332137797,15.76704559,195.1,195.04,13.91380853]
[1739332138104,153.86704559,195.11,195.04,29.68085412]
[1739332138287,14.32295245,195.1,195.05,13.69282853]
[1739332140405,4.07185245,195.1,195.08,15.76704559]
[1739332140584,4.07185245,195.1,195.09,13.78831853]
[1739332143329,4.07185245,195.1,195.07,0.12549]
[1739332143330,15.76704559,195.11,195.05,0.03]
[1739332143494,15.76704559,195.09,195.05,0.03]
[1739332143692,15.73441885,195.09,195.05,13.56733853]
[1739332145211,15.76704559,195.08,195.05,0.03]
[1739332145398,4.101,195.07,195.05,0.03]
[1739332145916,153.86704559,195.06,195.05,0.03]
[1739332146515,138.1,195.06,195.05,0.03]
[1739332147015,142.2013,195.06,195.05,0.03]
[1739332147514,168.22154559,195.06,195.01,13.41184853]
[1739332147702,15.76704559,195.05,195.01,13.41184853]
[1739332148119,15.76704559,195.02,194.99,0.03]
[1739332148903,4.1023,195.01,194.99,0.03]
[1739332149698,4.06923499,195.01,194.99,0.03]
[1739332150824,4.1021,195.02,195.0,16.14351559]
[1739332150990,4.1021,195.02,195.0,0.37647]
[1739332151890,4.1021,195.02,194.99,13.44184853]
[1739332152089,15.76704559,195.01,194.99,0.03]
[1739332152915,4.07156988,195.0,194.99,0.03]
[1739332153513,4.07156988,195.0,194.99,0.15549]
[1739332153698,4.07156988,195.0,194.99,15.92253559]
[1739332153893,4.07156988,195.0,194.99,0.15549]
[1739332154096,4.07156988,195.0,194.99,0.03]
[1739332154415,4.07156988,195.0,194.99,0.40647]
[1739332155615,15.76704559,195.04,194.99,0.40647]
[1739332155912,14.3567,195.03,194.99,0.40647]
[1739332156612,14.3567,195.03,195.0,0.37647]
[1739332156817,4.1019,195.03,195.01,13.41184853]
[1739332157714,4.1015,195.05,195.01,13.41184853]
[1739332158804,4.1015,195.05,195.02,0.37647]
[1739332159003,4.1015,195.05,195.04,0.37647]
[1739332159307,4.1015,195.05,195.04,13.78831853]
[1739332160313,153.86704559,195.1,195.03,15.76704559]
[1739332160506,4.1006,195.09,195.05,13.78831853]
[1739332161016,30.11854559,195.1,195.05,13.78831853]
[1739332161221,14.3515,195.1,195.05,29.55536412]
[1739332161924,14.3515,195.1,195.05,13.78831853]
[1739332162419,14.3515,195.1,195.03,0.12549]
[1739332162420,15.76704559,195.08,195.03,0.12549]
[1739332162720,15.76704559,195.08,195.04,0.25098]
[1739332162917,15.76704559,195.08,195.04,0.37647]
[1739332163223,4.101,195.07,195.04,0.37647]
[1739332164825,15.76704559,195.09,195.04,0.37647]
[1739332165002,4.1008,195.08,195.04,0.37647]
[1739332165199,30.12004559,195.08,195.02,7.6283]
[1739332166200,14.353,195.08,195.03,29.55536412]
[1739332166632,4.1008,195.08,195.06,13.78831853]
[1739332166812,0.063,195.1,195.06,13.78831853]
[1739332167009,4.1634,195.1,195.06,13.78831853]
[1739332170134,4.1634,195.1,195.08,13.78831853]
[1739332170424,4.1634,195.1,195.08,29.55536412]
[1739332170623,0.063,195.1,195.08,29.55536412]